bitfinex-derivatives/quotes_BNBF0:USTF0_20250302
["timestamp","ask_amount","ask_price","bid_price","bid_amount"]
[1740915612168,1.13636156,609.06,608.65,5.65759607]
[1740915612972,1.13636156,609.05,608.65,5.65759607]
[1740915613472,1.13636156,609.04,608.65,5.65759607]
[1740915613969,1.13636156,609.03,608.65,5.65759607]
[1740915614469,1.13636156,609.02,608.65,5.65759607]
[1740915615070,1.13636156,609.01,608.65,5.65759607]
[1740915615767,1.43720952,609.17,608.65,5.65759607]
[1740915615966,1.43720952,609.16,608.65,5.65759607]
[1740915616265,1.43720952,609.15,608.65,5.65759607]
[1740915616471,1.43720952,609.14,608.65,5.65759607]
[1740915616670,1.13630072,609.15,608.65,5.65759607]
[1740915616873,1.13630072,609.13,608.65,5.65759607]
[1740915617266,1.13630072,609.12,608.65,5.65759607]
[1740915617770,1.13630072,609.11,608.65,5.65759607]
[1740915618372,1.43671817,609.27,608.65,5.65759607]
[1740915618575,1.43671817,609.26,608.65,5.65759607]
[1740915618873,1.43671817,609.25,608.65,5.65759607]
[1740915619068,1.43671817,609.24,608.65,5.65759607]
[1740915619268,1.43671817,609.23,608.65,5.65759607]
[1740915619472,1.43644447,609.22,608.65,5.65759607]
[1740915619665,1.13589579,609.21,608.65,5.65759607]
[1740915620067,1.13589579,609.2,608.65,5.65759607]
[1740915620669,1.13589579,609.19,608.65,5.65759607]
[1740915621069,1.13589579,609.18,608.65,5.65759607]
[1740915621872,1.13589579,609.17,608.65,5.65759607]
[1740915622172,1.13589579,609.16,608.65,5.65759607]
[1740915622672,1.13589579,609.15,608.65,5.65759607]
[1740915623071,1.13589579,609.14,608.65,5.65759607]
[1740915623670,1.13589579,609.13,608.65,5.65759607]
[1740915624570,1.13589579,609.12,608.65,5.65759607]
[1740915624872,1.43533177,609.26,608.65,5.65759607]
[1740915625072,1.43533177,609.25,608.65,5.65759607]
[1740915625272,1.43533177,609.24,608.65,5.65759607]
[1740915625472,2.57007381,609.23,608.65,5.65759607]
[1740915625674,1.43533177,609.22,608.65,5.65759607]
[1740915625866,1.43533177,609.21,608.65,5.65759607]
[1740915626065,1.13474204,609.22,608.65,5.65759607]
[1740915626269,1.43498309,609.21,608.65,5.65759607]
[1740915626472,2.56971015,609.2,608.65,5.65759607]
[1740915626677,1.43496811,609.19,608.65,5.65759607]
[1740915626968,1.13474204,609.18,608.65,5.65759607]
[1740915627476,1.13474204,609.17,608.65,5.65759607]
[1740915627770,1.43457582,609.16,608.65,5.65759607]
[1740915627975,1.43457582,609.15,608.65,5.65759607]
[1740915628170,2.56931786,609.14,608.65,5.65759607]
[1740915628373,1.43457582,609.13,608.65,5.65759607]
[1740915628672,2.56931786,609.12,608.65,5.65759607]
[1740915628874,1.43457582,609.11,608.65,5.65759607]
[1740915629073,2.56931786,609.1,608.65,5.65759607]
[1740915629269,1.13474204,609.1,608.65,5.65759607]
[1740915629472,3.14894645,609.09,608.65,5.65759607]
[1740915629773,1.4340694,609.08,608.65,5.65759607]
[1740915629972,1.4340694,609.07,608.65,5.65759607]
[1740915630173,1.4340694,609.06,608.65,5.65759607]
[1740915630373,1.4340694,609.05,608.65,5.65759607]
[1740915630573,1.4340694,609.04,608.65,5.65759607]
[1740915630771,2.56881144,609.03,608.65,5.65759607]
[1740915630969,1.4340694,609.02,608.65,5.65759607]
[1740915631171,2.56881144,609.01,608.65,5.65759607]
[1740915631371,1.4340694,609.0,608.65,5.65759607]
[1740915631677,1.43375547,608.99,608.65,5.65759607]
[1740915631876,1.43373452,608.98,608.65,5.65759607]
[1740915632075,1.13474204,608.97,608.65,5.65759607]
[1740915632377,1.13474204,608.97,608.65,0.32859607]
[1740915632571,1.13474204,608.96,608.65,0.32859607]
[1740915632772,2.8498656,608.96,608.65,0.32859607]
[1740915632977,1.13474204,608.95,608.65,0.32859607]
[1740915633475,1.13474204,608.94,608.65,0.32859607]
[1740915633779,1.13474204,608.93,608.65,0.32859607]
[1740915634177,1.71544766,609.09,608.65,0.32859607]
[1740915634378,1.43322933,609.08,608.65,0.32859607]
[1740915634573,1.43322933,609.07,608.65,0.32859607]
[1740915634775,1.13314501,609.08,608.65,0.32859607]
[1740915635077,1.13314501,609.06,608.65,0.32859607]
[1740915635379,1.13314501,609.06,608.65,5.70959607]
[1740915635579,1.13314501,609.05,608.65,5.70959607]
[1740915635981,1.13314501,609.04,608.65,5.70959607]
[1740915636482,0.98156853,609.41,608.65,5.70959607]
[1740915636680,1.71473622,609.27,608.65,5.70959607]
[1740915636885,1.43298604,609.26,608.65,5.70959607]
[1740915637079,1.43298604,609.25,608.65,5.70959607]
[1740915637286,1.43298604,609.24,608.65,5.70959607]
[1740915637480,1.43298604,609.23,608.65,5.70959607]
[1740915637680,2.56587172,609.22,608.65,5.70959607]
[1740915637882,1.43298604,609.21,608.65,5.70959607]
[1740915638082,2.56587172,609.2,608.65,5.70959607]
[1740915638284,1.13288568,609.19,608.65,5.70959607]
[1740915638883,1.13288568,609.18,608.65,5.70959607]
[1740915639483,1.13288568,609.17,608.65,5.70959607]
[1740915640085,1.13288568,609.16,608.65,5.70959607]
[1740915640687,1.13288568,609.15,608.65,5.70959607]
[1740915641487,1.43304289,609.14,608.65,5.70959607]
[1740915641787,3.14780023,609.14,608.65,5.70959607]
[1740915641984,1.71475734,609.14,608.65,5.70959607]
[1740915643788,1.13288568,609.13,608.65,5.70959607]
[1740915643985,1.13288568,609.12,608.65,5.70959607]
[1740915644391,1.13288568,609.11,608.65,5.70959607]
[1740915644790,1.13288568,609.1,608.65,5.70959607]
[1740915645291,1.13288568,609.09,608.65,5.70959607]
[1740915645892,1.13288568,609.08,608.65,5.70959607]
[1740915646294,1.13288568,609.07,608.65,5.70959607]
[1740915646795,1.13288568,609.06,608.65,5.70959607]
[1740915647490,1.13288568,609.05,608.65,5.70959607]
[1740915648093,1.13288568,609.04,608.65,5.70959607]
[1740915648596,1.43296906,609.15,608.65,5.70959607]
[1740915648796,1.43296906,609.14,608.65,5.70959607]
[1740915648993,1.1329492,609.13,608.65,5.70959607]
[1740915649294,1.1329492,609.12,608.65,5.70959607]
[1740915649993,1.1329492,609.11,608.65,5.70959607]
[1740915650395,1.1329492,609.1,608.65,5.70959607]
[1740915650896,1.1329492,609.09,608.65,5.70959607]
[1740915651793,1.1329492,609.08,608.65,5.70959607]
[1740915651991,1.1329492,609.07,608.65,5.70959607]
[1740915652999,1.1329492,609.06,608.65,5.70959607]
[1740915653392,1.1329492,609.05,608.65,5.70959607]
[1740915653998,1.1329492,609.04,608.65,5.70959607]
[1740915654599,1.1329492,609.03,608.65,5.70959607]
[1740915654899,1.43312104,609.15,608.65,5.70959607]
[1740915655094,1.43312104,609.14,608.65,5.70959607]
[1740915655295,1.71476438,609.16,608.65,5.70959607]
[1740915655501,1.43314449,609.15,608.65,5.70959607]
[1740915655701,2.56624138,609.14,608.65,5.70959607]
[1740915655901,1.13309689,609.14,608.65,5.70959607]
[1740915656302,1.13309689,609.13,608.65,5.70959607]
[1740915656900,1.71470806,609.16,608.65,5.70959607]
[1740915656901,1.13309689,609.12,608.65,5.70959607]
[1740915657097,1.13309689,609.11,608.65,5.70959607]
[1740915657802,1.13309689,609.1,608.65,5.70959607]
[1740915658302,1.13309689,609.09,608.65,5.70959607]
[1740915659106,1.13309689,609.08,608.65,5.70959607]
[1740915659701,1.13309689,609.07,608.65,5.70959607]
[1740915660301,1.13309689,609.06,608.65,5.70959607]
[1740915660804,1.13309689,609.05,608.65,5.70959607]
[1740915661202,1.13309689,609.04,608.65,5.70959607]
[1740915661811,1.13309689,609.03,608.65,5.70959607]
[1740915662406,1.43324498,609.3,608.65,5.70959607]
[1740915662607,1.43330968,609.29,608.65,5.70959607]
[1740915662809,1.71478551,609.16,608.65,5.70959607]
[1740915663003,1.43330968,609.15,608.65,5.70959607]
[1740915663206,2.8477866,609.28,608.65,5.70959607]
[1740915663418,2.56634769,609.27,608.65,5.70959607]
[1740915663716,1.43316354,609.26,608.65,5.70959607]
[1740915663916,1.43316354,609.25,608.65,5.70959607]
[1740915664211,2.56634769,609.24,608.65,5.70959607]
[1740915664413,1.43316354,609.23,608.65,5.70959607]
[1740915664615,1.43316354,609.22,608.65,5.70959607]
[1740915664815,1.43316354,609.21,608.65,5.70959607]
[1740915665014,1.43316354,609.2,608.65,5.70959607]
[1740915665317,1.43316354,609.19,608.65,5.70959607]
[1740915665614,1.13318415,609.19,608.65,5.70959607]
[1740915666014,1.43332041,609.18,608.65,5.70959607]
[1740915666215,1.13318415,609.19,608.65,5.70959607]
[1740915666414,1.13318415,609.18,608.65,5.70959607]
[1740915667017,1.13318415,609.17,608.65,5.70959607]
[1740915667408,1.13318415,609.16,608.65,5.70959607]
[1740915668011,1.13318415,609.15,608.65,5.70959607]
[1740915668610,2.56640516,609.14,608.65,5.70959607]
[1740915668814,1.13318415,609.14,608.65,5.70959607]
[1740915669213,1.13318415,609.13,608.65,5.70959607]
[1740915669618,1.13318415,609.12,608.65,5.70959607]
[1740915670113,1.13318415,609.11,608.65,5.70959607]
[1740915670720,1.13318415,609.1,608.65,5.70959607]
[1740915671617,1.13318415,609.09,608.65,5.70959607]
[1740915672015,1.13318415,609.08,608.65,5.70959607]
[1740915672724,1.13318415,609.07,608.65,5.70959607]
[1740915673320,1.13318415,609.06,608.65,5.70959607]
[1740915673721,1.13318415,609.05,608.65,5.70959607]
[1740915674426,1.4330497,609.15,608.65,5.70959607]
[1740915674727,2.56596662,609.14,608.65,5.70959607]
[1740915675025,1.43299038,609.13,608.65,5.70959607]
[1740915675221,1.13297624,609.13,608.65,5.70959607]
[1740915675721,1.13297624,609.12,608.65,5.70959607]
[1740915676324,1.13297624,609.11,608.65,5.70959607]
[1740915676829,1.13297624,609.1,608.65,5.70959607]
[1740915677625,1.71477143,609.16,608.65,5.70959607]
[1740915677626,1.13297624,609.09,608.65,5.70959607]
[1740915677825,1.13297624,609.08,608.65,5.70959607]
[1740915678525,1.13297624,609.07,608.65,5.70959607]
[1740915678927,1.71477143,609.16,608.65,5.70959607]
[1740915679322,1.13318404,609.15,608.65,5.70959607]
[1740915679930,1.13318404,609.14,608.65,5.70959607]
[1740915680428,1.13318404,609.13,608.65,5.70959607]
[1740915681032,1.13318404,609.12,608.65,5.70959607]
[1740915681425,1.13318404,609.11,608.65,5.70959607]
[1740915681830,1.13318404,609.1,608.65,5.70959607]
[1740915682732,1.13318404,609.09,608.65,5.70959607]
[1740915683231,1.13318404,609.08,608.65,5.70959607]
[1740915683632,1.13318404,609.07,608.65,5.70959607]
[1740915684029,1.13318404,609.06,608.65,5.70959607]
[1740915684834,1.13318404,609.05,608.65,5.70959607]
[1740915685230,1.13318404,609.04,608.65,5.70959607]
[1740915686031,1.13318404,609.03,608.65,5.70959607]
[1740915686534,1.13318404,609.02,608.65,5.70959607]
[1740915686952,1.13318404,609.01,608.65,5.70959607]
[1740915687532,1.13318404,609.0,608.65,5.70959607]
[1740915687936,1.13318404,608.99,608.65,5.70959607]
[1740915688532,1.13318404,608.98,608.65,5.70959607]
[1740915688934,1.13318404,608.97,608.65,5.70959607]
[1740915689133,1.13318404,608.97,608.65,3.99259607]
[1740915689332,1.13318404,608.97,608.65,0.32859607]
[1740915689532,1.13318404,608.96,608.65,0.32859607]
[1740915690038,1.43441039,609.08,608.65,0.32859607]
[1740915690338,1.71482776,609.16,608.65,0.32859607]
[1740915690538,1.43458357,609.15,608.65,0.32859607]
[1740915690734,2.56872518,609.14,608.65,0.32859607]
[1740915690931,1.43458357,609.13,608.65,0.32859607]
[1740915691136,1.43458357,609.12,608.65,0.32859607]
[1740915691334,1.13414161,609.13,608.65,0.32859607]
[1740915691335,1.43458357,609.11,608.65,0.32859607]
[1740915691539,1.43458357,609.1,608.65,0.32859607]
[1740915691835,2.56872518,609.09,608.65,0.32859607]
[1740915692036,1.43458357,609.08,608.65,0.32859607]
[1740915692237,2.56872518,609.07,608.65,0.32859607]
[1740915692434,1.43458357,609.06,608.65,5.04759607]
[1740915692634,1.43458357,609.05,608.65,5.04759607]
[1740915692835,1.43458357,609.04,608.65,5.04759607]
[1740915693140,1.13414161,609.04,608.65,5.04759607]
[1740915693339,1.13414161,609.03,608.65,5.04759607]
[1740915693834,1.13414161,609.02,608.65,5.04759607]
[1740915694634,1.13414161,609.01,608.65,5.04759607]
[1740915695441,1.13414161,609.0,608.65,5.04759607]
[1740915696039,1.13414161,608.99,608.65,5.04759607]
[1740915696941,1.13414161,608.98,608.65,5.04759607]
[1740915697342,1.13414161,608.97,608.65,5.04759607]
[1740915698141,1.13414161,608.96,608.65,5.04759607]
[1740915698542,1.13414161,608.95,608.65,5.04759607]
[1740915698943,1.13414161,608.94,608.65,5.04759607]
[1740915699843,1.71494748,609.09,608.65,5.04759607]
[1740915700545,1.1354504,609.08,608.65,5.04759607]
[1740915700939,1.1354504,609.07,608.65,5.04759607]
[1740915701838,1.1354504,609.06,608.65,5.04759607]
[1740915702441,1.1354504,609.05,608.65,5.04759607]
[1740915702841,1.1354504,609.04,608.65,5.04759607]
[1740915704246,1.1354504,609.03,608.65,5.04759607]
[1740915705049,1.1354504,609.02,608.65,5.04759607]
[1740915705647,1.1354504,609.01,608.65,5.04759607]
[1740915706151,1.1354504,609.0,608.65,5.04759607]
[1740915706848,1.1354504,608.99,608.65,5.04759607]
[1740915707349,1.1354504,608.98,608.65,5.04759607]
[1740915707749,1.1354504,608.97,608.65,5.04759607]
[1740915708146,1.1354504,608.97,608.65,2.04559607]
[1740915708346,1.71492635,609.08,608.65,2.04559607]
[1740915708347,1.1354504,608.96,608.65,2.04559607]
[1740915708750,1.1354504,608.95,608.65,2.04559607]
[1740915709451,1.71492635,609.08,608.65,2.04559607]
[1740915709452,1.1354504,608.94,608.65,2.04559607]
[1740915710047,1.1354504,608.93,608.65,2.04559607]
[1740915710448,1.13508456,608.92,608.65,2.04559607]
[1740915711149,1.71492635,609.08,608.65,2.04559607]
[1740915711350,2.57064041,609.07,608.65,2.04559607]
[1740915711550,1.4355986,609.06,608.65,2.04559607]
[1740915711750,2.57064041,609.05,608.65,2.04559607]
[1740915711958,1.13504181,609.05,608.65,2.04559607]
[1740915712554,1.13504181,609.04,608.65,2.04559607]
[1740915713051,1.13504181,609.03,608.65,2.04559607]
[1740915713756,1.13504181,609.02,608.65,2.04559607]
[1740915714553,1.13504181,609.01,608.65,2.04559607]
[1740915715151,1.13504181,609.0,608.65,2.04559607]
[1740915715658,1.13504181,608.99,608.65,2.04559607]
[1740915716157,1.13504181,608.98,608.65,2.04559607]
[1740915716959,1.13504181,608.97,608.65,2.04559607]
[1740915717156,1.13504181,608.96,608.65,2.04559607]
[1740915717460,1.13504181,608.95,608.65,2.04559607]
[1740915718063,1.13504181,608.94,608.65,2.04559607]
[1740915718754,1.43559,609.07,608.65,2.04559607]
[1740915719054,1.43559,609.06,608.65,2.04559607]
[1740915719260,1.13501507,609.06,608.65,2.04559607]
[1740915719759,1.13501507,609.05,608.65,2.04559607]
[1740915720158,1.13501507,609.04,608.65,2.04559607]
[1740915720760,1.13501507,609.03,608.65,2.04559607]
[1740915721359,1.13501507,609.02,608.65,2.04559607]
[1740915722060,1.13501507,609.01,608.65,2.04559607]
[1740915722660,1.13501507,609.0,608.65,2.04559607]
[1740915722961,1.13501507,608.99,608.65,2.04559607]
[1740915723761,1.13501507,608.98,608.65,2.04559607]
[1740915724162,1.13501507,608.97,608.65,2.04559607]
[1740915724555,1.13501507,608.96,608.65,0.32859607]
[1740915725161,1.13501507,608.95,608.65,0.32859607]
[1740915725960,1.13501507,608.94,608.65,0.32859607]
[1740915726662,1.13501507,608.93,608.65,0.32859607]
[1740915727655,1.13501507,608.92,608.65,0.32859607]
[1740915728060,1.13501507,608.91,608.65,0.32859607]
[1740915728762,1.71501791,609.08,608.65,0.32859607]
[1740915728962,1.43621622,609.07,608.65,0.32859607]
[1740915729162,1.43621622,609.06,608.65,0.32859607]
[1740915729364,1.13560192,609.06,608.65,0.32859607]
[1740915729965,2.57198617,609.05,608.65,0.32859607]
[1740915730167,1.43638425,609.04,608.65,0.32859607]
[1740915730465,1.13560192,609.03,608.65,0.32859607]
[1740915731065,1.13560192,609.02,608.65,0.32859607]
[1740915731861,1.13560192,609.01,608.65,0.32859607]
[1740915732466,1.13560192,609.0,608.65,0.32859607]
[1740915733067,1.13560192,608.99,608.65,0.32859607]
[1740915733463,1.13560192,608.98,608.65,0.32859607]
[1740915733863,1.13560192,608.97,608.65,0.32859607]
[1740915734464,1.13560192,608.96,608.65,0.32859607]
[1740915735069,1.13560192,608.95,608.65,0.32859607]
[1740915735770,1.13560192,608.94,608.65,0.32859607]
[1740915736165,1.13560192,608.93,608.65,0.32859607]
[1740915736771,1.13560192,608.92,608.65,0.32859607]
[1740915736964,1.71487705,609.17,608.65,0.32859607]
[1740915737167,1.43704259,609.16,608.65,0.32859607]
[1740915737365,2.57322222,609.15,608.65,0.32859607]
[1740915737671,2.57322222,609.14,608.65,0.32859607]
[1740915737871,1.43704259,609.13,608.65,0.32859607]
[1740915738172,2.57322222,609.12,608.65,0.32859607]
[1740915738373,1.13617963,609.12,608.65,0.32859607]
[1740915738672,1.13617963,609.11,608.65,0.32859607]
[1740915739069,1.13617963,609.1,608.65,0.32859607]
[1740915739670,1.13617963,609.09,608.65,0.32859607]
[1740915739871,1.13617963,609.08,608.65,0.32859607]
[1740915740368,1.13617963,609.07,608.65,0.32859607]
[1740915740773,1.13617963,609.06,608.65,0.32859607]
[1740915741370,1.13617963,609.06,608.65,0.90659607]
[1740915741772,1.13617963,609.05,608.65,0.90659607]
[1740915742373,1.13617963,609.04,608.65,0.90659607]
[1740915742676,1.13617963,609.03,608.65,2.29959607]
[1740915743174,1.13617963,609.02,608.65,2.29959607]
[1740915743775,1.13617963,609.01,608.65,2.29959607]
[1740915744276,1.13617963,609.0,608.65,2.29959607]
[1740915744477,1.13617963,609.0,608.65,3.64359607]
[1740915744677,1.13617963,608.99,608.65,3.64359607]
[1740915745077,1.13617963,608.98,608.65,3.64359607]
[1740915745876,1.13617963,608.97,608.65,3.64359607]
[1740915746276,1.71473622,609.2,608.65,3.64359607]
[1740915746277,1.13617963,608.96,608.65,3.64359607]
[1740915746676,1.13617963,608.95,608.65,3.64359607]
[1740915747179,1.13617963,608.94,608.65,3.64359607]
[1740915748183,1.13617963,608.93,608.65,3.64359607]
[1740915748473,1.13617963,608.92,608.65,3.64359607]
[1740915749579,1.71500382,609.06,608.65,3.64359607]
[1740915749781,1.1362451,608.91,608.65,3.64359607]
[1740915750377,1.71500382,609.06,608.65,3.64359607]
[1740915750584,2.57333982,609.05,608.65,3.64359607]
[1740915750779,1.43710514,609.04,608.65,3.64359607]
[1740915750985,1.43710514,609.03,608.65,3.64359607]
[1740915751178,1.13623468,609.03,608.65,3.64359607]
[1740915751378,2.573329,609.02,608.65,3.64359607]
[1740915751578,1.43709432,609.01,608.65,3.64359607]
[1740915751783,1.13623468,609.02,608.65,3.64359607]
[1740915751784,1.43709432,609.0,608.65,3.64359607]
[1740915751979,1.13623468,608.99,608.65,3.64359607]
[1740915752383,1.13623468,608.98,608.65,3.64359607]
[1740915753185,1.13623468,608.97,608.65,3.64359607]
[1740915753686,1.13623468,608.96,608.65,3.64359607]
[1740915754085,1.13623468,608.95,608.65,3.64359607]
[1740915754484,1.13623468,608.94,608.65,3.64359607]
[1740915754987,1.13623468,608.93,608.65,3.64359607]
[1740915755389,1.13623468,608.92,608.65,3.64359607]
[1740915755683,1.13623468,608.91,608.65,3.64359607]
[1740915756285,1.71500382,609.06,608.65,3.64359607]
[1740915756483,1.43701551,609.05,608.65,3.64359607]
[1740915756683,2.57317967,609.04,608.65,3.64359607]
[1740915756891,1.43695642,609.03,608.65,3.64359607]
[1740915757187,1.13616416,609.04,608.65,3.64359607]
[1740915757383,1.13616416,609.02,608.65,3.64359607]
[1740915757986,1.13616416,609.01,608.65,3.64359607]
[1740915758192,1.13616416,609.0,608.65,3.64359607]
[1740915758696,1.13616416,608.99,608.65,3.64359607]
[1740915759188,1.13616416,608.98,608.65,3.64359607]
[1740915759491,1.13616416,608.97,608.65,3.64359607]
[1740915759893,1.13616416,608.97,608.65,2.29959607]
[1740915760096,1.13616416,608.96,608.65,2.29959607]
[1740915760595,1.13616416,608.96,608.65,1.72159607]
[1740915761089,1.13616416,608.95,608.65,1.72159607]
[1740915761494,0.98394581,609.21,608.65,1.72159607]
[1740915761688,1.43694153,609.2,608.65,1.72159607]
[1740915761887,1.71495452,609.08,608.65,1.72159607]
[1740915762089,1.43694153,609.07,608.65,1.72159607]
[1740915762293,2.57304018,609.06,608.65,1.72159607]
[1740915762493,1.43694153,609.05,608.65,1.72159607]
[1740915762691,2.57304018,609.04,608.65,1.72159607]
[1740915762889,1.13609865,609.04,608.65,3.19959607]
[1740915763393,1.13609865,609.03,608.65,3.19959607]
[1740915763595,1.13609865,609.03,608.65,3.77759607]
[1740915763791,1.13609865,609.02,608.65,3.77759607]
[1740915764194,1.13609865,609.01,608.65,3.77759607]
[1740915766597,1.13609865,609.0,608.65,3.77759607]
[1740915767398,0.98382959,609.28,608.65,3.77759607]
[1740915767598,1.43661572,609.27,608.65,3.77759607]
[1740915767799,1.71476438,609.19,608.65,3.77759607]
[1740915768000,1.43661572,609.18,608.65,3.77759607]
[1740915768299,2.57245485,609.17,608.65,3.77759607]
[1740915768500,1.43661572,609.16,608.65,3.77759607]
[1740915768702,2.57245485,609.15,608.65,3.77759607]
[1740915768995,1.43652416,609.14,608.65,3.77759607]
[1740915769195,1.43652416,609.13,608.65,3.77759607]
[1740915769396,1.43652416,609.12,608.65,3.77759607]
[1740915769597,1.13583913,609.12,608.65,3.77759607]
[1740915769802,1.43643312,609.11,608.65,3.77759607]
[1740915770102,1.13583913,609.1,608.65,3.77759607]
[1740915770498,1.13583913,609.09,608.65,3.77759607]
[1740915771101,1.13583913,609.08,608.65,3.77759607]
[1740915771495,1.13583913,609.07,608.65,3.77759607]
[1740915771695,1.13583913,609.06,608.65,3.77759607]
[1740915772596,1.13583913,609.05,608.65,3.77759607]
[1740915773196,1.13583913,609.04,608.65,3.77759607]
[1740915773401,0.98337488,609.33,608.65,3.77759607]
[1740915773601,3.04432444,609.32,608.65,3.77759607]
[1740915773796,1.71469397,609.25,608.65,3.77759607]
[1740915774003,1.43606111,609.24,608.65,3.77759607]
[1740915774195,1.43606111,609.23,608.65,3.77759607]
[1740915774399,1.43606111,609.22,608.65,3.77759607]
[1740915774602,1.43606111,609.21,608.65,3.77759607]
[1740915774802,1.43606111,609.2,608.65,3.77759607]
[1740915775001,1.43606111,609.19,608.65,3.77759607]
[1740915775201,1.13540066,609.21,608.65,3.77759607]
[1740915775503,1.43557218,609.2,608.65,3.77759607]
[1740915775703,1.13540066,609.2,608.65,3.77759607]
[1740915776103,1.43555411,609.19,608.65,3.77759607]
[1740915776305,1.13540066,609.18,608.65,3.77759607]
[1740915776500,1.13540066,609.17,608.65,3.77759607]
[1740915777406,1.13540066,609.16,608.65,3.77759607]
[1740915778306,1.13540066,609.15,608.65,3.77759607]
[1740915779106,1.13540066,609.14,608.65,3.77759607]
[1740915779811,1.13540066,609.13,608.65,3.77759607]
[1740915780004,1.13540066,609.12,608.65,3.77759607]
[1740915780511,1.13540066,609.11,608.65,3.77759607]
[1740915780915,1.13540066,609.1,608.65,3.77759607]
[1740915781509,1.71462357,609.22,608.65,3.77759607]
[1740915781706,1.43500815,609.21,608.65,3.77759607]
[1740915781911,1.43500815,609.2,608.65,3.77759607]
[1740915782108,1.43500815,609.19,608.65,3.77759607]
[1740915782307,2.56958209,609.18,608.65,3.77759607]
[1740915782512,1.13457394,609.18,608.65,3.77759607]
[1740915782813,1.13457394,609.17,608.65,3.77759607]
[1740915783010,1.13457394,609.16,608.65,3.77759607]
[1740915783414,1.13457394,609.15,608.65,3.77759607]
[1740915783619,1.13457394,609.14,608.65,3.77759607]
[1740915784214,1.13457394,609.13,608.65,3.77759607]
[1740915784615,1.13457394,609.12,608.65,3.77759607]
[1740915785007,1.13457394,609.11,608.65,3.77759607]
[1740915785411,1.13457394,609.1,608.65,3.77759607]
[1740915786009,1.13457394,609.09,608.65,3.77759607]
[1740915786611,1.13457394,609.08,608.65,3.77759607]
[1740915787110,1.43490795,609.18,608.65,3.77759607]
[1740915787315,1.71464469,609.22,608.65,3.77759607]
[1740915787516,1.13447598,609.17,608.65,3.77759607]
[1740915788217,1.13447598,609.16,608.65,5.13059607]
[1740915789020,1.13447598,609.15,608.65,5.13059607]
[1740915789621,1.13447598,609.14,608.65,5.13059607]
[1740915790321,1.13447598,609.13,608.65,5.13059607]
[1740915791024,1.13447598,609.12,608.65,5.13059607]
[1740915791624,1.13447598,609.11,608.65,5.13059607]
[1740915791821,1.13447598,609.1,608.65,5.13059607]
[1740915792427,1.13447598,609.09,608.65,5.13059607]
[1740915792826,1.13447598,609.08,608.65,5.13059607]
[1740915793321,1.43494061,609.19,608.65,5.13059607]
[1740915793527,2.56948448,609.18,608.65,5.13059607]
[1740915793727,1.43494061,609.17,608.65,5.13059607]
[1740915793928,1.13454387,609.17,608.65,5.13059607]
[1740915794132,1.43499237,609.16,608.65,5.13059607]
[1740915794323,1.13454387,609.17,608.65,5.13059607]
[1740915794532,1.13454387,609.15,608.65,5.13059607]
[1740915794922,1.13454387,609.14,608.65,5.13059607]
[1740915795523,1.13454387,609.13,608.65,5.13059607]
[1740915795726,1.13454387,609.12,608.65,5.13059607]
[1740915796329,1.13454387,609.11,608.65,5.13059607]
[1740915796632,1.13454387,609.1,608.65,5.13059607]
[1740915797229,1.13454387,609.09,608.65,5.13059607]
[1740915797630,1.13454387,609.08,608.65,5.13059607]
[1740915798028,1.13454387,609.07,608.65,5.13059607]
[1740915798226,1.13454387,609.06,608.65,5.13059607]
[1740915799029,1.13454387,609.05,608.65,5.13059607]
[1740915799831,1.43509447,609.19,608.65,5.13059607]
[1740915800032,1.43509447,609.18,608.65,5.13059607]
[1740915800231,1.43509447,609.17,608.65,5.13059607]
[1740915800432,1.43509447,609.16,608.65,5.13059607]
[1740915800628,1.43509447,609.15,608.65,5.13059607]
[1740915800833,1.13465137,609.16,608.65,5.13059607]
[1740915801034,2.56982547,609.15,608.65,5.13059607]
[1740915801230,1.4351741,609.14,608.65,5.13059607]
[1740915801430,1.13465137,609.14,608.65,5.13059607]
[1740915801840,1.13465137,609.13,608.65,5.13059607]
[1740915802232,1.13465137,609.12,608.65,5.13059607]
[1740915802532,1.13465137,609.11,608.65,5.13059607]
[1740915802934,1.13465137,609.1,608.65,5.13059607]
[1740915803330,1.13465137,609.09,608.65,5.13059607]
[1740915803733,1.13465137,609.08,608.65,5.13059607]
[1740915804132,1.13465137,609.07,608.65,5.13059607]
[1740915804529,1.13465137,609.06,608.65,5.13059607]
[1740915804931,1.13465137,609.05,608.65,5.13059607]
[1740915805337,1.13465137,609.04,608.65,5.13059607]
[1740915805831,1.13465137,609.03,608.65,5.13059607]
[1740915806037,1.13465137,609.02,608.65,5.13059607]
[1740915806432,0.9827125,609.36,608.65,5.13059607]
[1740915806634,1.71484888,609.12,608.65,5.13059607]
[1740915806835,0.9827125,609.33,608.65,5.13059607]
[1740915807131,1.13469137,609.11,608.65,5.13059607]
[1740915807333,1.13469137,609.1,608.65,5.13059607]
[1740915807733,1.13469137,609.09,608.65,5.13059607]
[1740915808330,1.13469137,609.08,608.65,5.13059607]
[1740915808832,1.13469137,609.07,608.65,5.13059607]
[1740915809441,2.57006921,609.06,608.65,5.13059607]
[1740915809735,1.43537784,609.05,608.65,5.13059607]
[1740915809933,1.43537784,609.04,608.65,5.13059607]
[1740915810138,1.13469137,609.05,608.65,5.13059607]
[1740915810336,1.43535833,609.04,608.65,5.13059607]
[1740915810535,1.13469137,609.03,608.65,5.13059607]
[1740915811039,1.71488409,609.07,608.65,5.13059607]